[Event "BLR-ch 1st Stage Women 2020"]
[Site "Minsk"]
[Date "2020.02.03"]
[Round "9.1"]
[White "Halouchyts, Karalina"]
[Black "Zeliantsova, Kseniya"]
[Result "0-1"]
[ECO "B35"]
[WhiteElo "1685"]
[BlackElo "1993"]
[Annotator "NA RC"]
[PlyCount "75"]
[EventDate "2020.02.01"]
[EventType "swiss"]
[EventCountry "BLR"]
[SourceTitle "playchess.com"]
[Source "ChessBase"]
[SourceQuality "1"]
[TimeControl "40/5400+30:1800+30"]

1. e4 {[%emt 0:00:00]} c5 {[%emt 0:00:00]} 2. Nf3 {[%emt 0:00:00]} Nc6 {[%emt 0:00:00]} 3. d4 {[%emt 0:00:00]} cxd4 {[%emt 0:00:00]} 4. Nxd4 {[%emt 0:00:00]} g6 {[%emt 0:00:00]} 5. Nc3 {[%emt 0:00:00]} Bg7 {[%emt 0:00:11]} 6. Be3 {[%emt 0:00:00]} d6 {[%emt 0:00:52]} 7. Bc4 {[%emt 0:02:08]} Nf6 {[%emt 0:00:12]} 8. f3 {[%emt 0:01:14]} O-O {[%emt 0:01:50]} 9. Bb3 {[%emt 0:00:59]} Qa5 {[%emt 0:04:44]} 10. O-O {[%emt 0:00:34]} Bd7 {[%emt 0:00:44] [#]} 11. Rb1 $146 {[%emt 0:05:03] B35: Sicilian: Accelerated Dragon with 5 Nc3: main line} ({Predecessor:} 11. Nd5 Nxd5 12. exd5 Ne5 13. Qe2 b5 14. c3 Rfe8 15. Rfe1 Rab8 16. Bf2 Qc7 17. a4 a6 18. axb5 axb5 {½-½ (57) Fischer,D (2327)-Delchev,A (2550) Montebelluna 2020}) 11... Rac8 {[%emt 0:04:11]} 12. Nd5 {[%emt 0:04:14]} Nxd5 {[%emt 0:10:57]} 13. Bxd5 {[%emt 0:02:28]} Nxd4 {[%emt 0:03:32]} 14. Bxd4 {[%emt 0:00:22]} Bxd4+ {[%emt 0:01:15]} 15. Qxd4 {[%emt 0:00:13]} Rxc2 {[%emt 0:00:27]} 16. Bxb7 {[%emt 0:29:06]} e5 {[%emt 0:19:34]} 17. Qxd6 {[%emt 0:07:48]} Bb5 {[%emt 0:10:44]} 18. Rfd1 {[%emt 0:28:16]} (18. Rfc1 $5 {[%cal Rc1c2]} Re2 19. Kh1 $11 (19. Qxe5 $2 Qb6+ {[%mdl 64] Double Attack} 20. Rc5 Bd3 $19)) 18... Be2 {[%emt 0:02:22]} (18... Bc4 $11) 19. Rdc1 {[%emt 0:00:16]} Rd2 {[%emt 0:03:53]} (19... Qxa2 $14 20. Qxe5 Bc4) 20. Bd5 {[%emt 0:00:17]} Bd3 {[%emt 0:00:38]} 21. Ra1 {[%emt 0:08:07]} a6 $2 {[%emt 0:20:39]} (21... Rxb2 {is tougher.} 22. Qxe5 Qb6+ 23. Kh1 Ba6) 22. Rc7 {[%emt 0:05:02]} Qa4 {[%emt 0:05:07]} 23. Qxe5 {[%emt 0:02:13]} Bb5 {[%emt 0:02:36]} 24. b3 {[%emt 0:02:05]} Qa5 {[%emt 0:01:31]} 25. a4 {[%emt 0:01:16]} Qb6+ {[%emt 0:00:11]} 26. Kh1 {[%emt 0:00:13]} Be8 {[%emt 0:01:59]} 27. Re7 {[%emt 0:01:00]} Qd8 {[%emt 0:01:00]} 28. Qf6 {[%emt 0:00:28]} Qc8 {[%emt 0:03:17]} 29. h4 $18 {[%emt 0:00:28]} Qb8 {[%emt 0:00:59]} 30. h5 {[%emt 0:00:35]} Qg3 {[%emt 0:00:32]} 31. Rg1 {[%emt 0:00:16]} g5 {[%emt 0:00:35]} 32. Qf5 {[%emt 0:00:38]} Qh4+ {[%emt 0:00:50]} 33. Qh3 {[%emt 0:00:16]} Qf4 {[%emt 0:00:29]} 34. Qg4 {[%emt 0:00:45]} Qf6 {[%emt 0:00:19]} 35. Rb7 {[%emt 0:00:30]} Kh8 {[%emt 0:00:40]} 36. a5 {[%emt 0:00:29]} Qh6 {[%emt 0:00:24]} 37. Rb6 {[%emt 0:00:35]} f6 {[%emt 0:00:35]} 38. Rxa6 {[%emt 0:01:06]} 0-1

[Event "BLR-ch 1st Stage Women 2020"]
[Site "Minsk"]
[Date "2020.02.03"]
[Round "9.2"]
[White "Norman, Kseniya"]
[Black "Poliakova, Varvara"]
[Result "1-0"]
[ECO "C91"]
[WhiteElo "1730"]
[BlackElo "2052"]
[Annotator "NA RC"]
[PlyCount "119"]
[EventDate "2020.02.01"]
[EventType "swiss"]
[EventCountry "BLR"]
[SourceTitle "playchess.com"]
[Source "ChessBase"]
[SourceQuality "1"]
[TimeControl "40/5400+30:1800+30"]

1. e4 {[%emt 0:00:00]} e5 {[%emt 0:00:00]} 2. Nf3 {[%emt 0:00:00]} Nc6 {[%emt 0:00:00]} 3. Bb5 {[%emt 0:00:00]} a6 {[%emt 0:00:00]} 4. Ba4 {[%emt 0:00:00]} Nf6 {[%emt 0:00:00]} 5. O-O {[%emt 0:00:59]} Be7 {[%emt 0:00:08]} 6. Re1 {[%emt 0:00:18]} b5 {[%emt 0:00:05]} 7. Bb3 {[%emt 0:00:06]} d6 {[%emt 0:00:20]} 8. c3 {[%emt 0:00:24]} O-O {[%emt 0:00:49]} 9. d4 {[%emt 0:01:01]} Bg4 {[%emt 0:01:43]} 10. d5 {[%emt 0:00:58]} Na5 {[%emt 0:02:27]} 11. Bc2 {[%emt 0:00:25] C91: Closed Ruy Lopez: 7...d6 8 c3 0-0 9 d4} Bd7 {[%emt 0:00:08]} 12. Nbd2 {[%emt 0:01:24]} c6 {[%emt 0:01:40]} 13. dxc6 {[%emt 0:02:52] [#]} Bxc6 $146 {[%emt 0:00:15]} ({Predecessor:} 13... Nxc6 14. Nf1 Re8 15. Bg5 Ng4 16. Qd2 Na5 17. b3 Qc7 18. Bxe7 Rxe7 19. Rac1 Rc8 20. Red1 Nb7 {0-1 (74) Kovalevskaya,E (2486)-Obukhov,A (2444) Samara 2002}) 14. Nf1 {[%emt 0:01:36]} Qc7 {[%emt 0:03:17]} 15. Bg5 {[%emt 0:08:31]} Nb7 {[%emt 0:06:42]} 16. Bxf6 {[%emt 0:06:05]} Bxf6 {[%emt 0:00:19]} 17. Ne3 {[%emt 0:00:06]} Nc5 {[%emt 0:06:45]} 18. Nd5 {[%emt 0:00:52]} Qd8 {[%emt 0:00:10]} 19. h3 {[%emt 0:03:26]} g6 {[%emt 0:02:32]} 20. Nh2 {[%emt 0:02:58]} Bg7 {[%emt 0:00:57]} 21. Ng4 {[%emt 0:01:51]} Ne6 {[%emt 0:10:31]} 22. Nge3 {[%emt 0:05:20]} Qg5 {[%emt 0:06:22]} 23. Qf3 {[%emt 0:06:16]} Kh8 {[%emt 0:01:24]} 24. Rad1 {[%emt 0:02:26]} Rad8 {[%emt 0:00:06]} 25. Qg4 {[%emt 0:04:05]} Qxg4 {[%emt 0:02:27]} 26. hxg4 {[%emt 0:01:24]} Bh6 {[%emt 0:06:56]} 27. g3 {[%emt 0:06:29]} Nc5 {[%emt 0:03:43]} 28. Kg2 {[%emt 0:03:35]} Bb7 {[%emt 0:03:30]} 29. f4 {[%emt 0:04:11]} exf4 {[%emt 0:05:29]} 30. gxf4 {[%emt 0:00:02]} Rfe8 {[%emt 0:03:00]} (30... a5 $142) 31. Kf3 {[%emt 0:00:59]} Bg7 {[%emt 0:02:37]} 32. g5 {[%emt 0:04:16]} b4 {[%emt 0:06:23]} (32... Re6 $16 {might work better.}) 33. cxb4 {[%emt 0:04:49]} Ne6 {[%emt 0:00:11]} 34. Ba4 {[%emt 0:02:13]} Nd4+ {[%emt 0:02:42]} 35. Rxd4 {[%emt 0:00:19]} Bxd4 {[%emt 0:00:01]} 36. Bxe8 {[%emt 0:00:02]} Rxe8 {[%emt 0:00:02]} 37. Rd1 {[%emt 0:02:37]} Bxe3 {[%emt 0:09:35]} 38. Kxe3 {[%emt 0:00:07]} h5 {[%emt 0:01:00]} 39. gxh6 {[%emt 0:01:19]} Bxd5 {[%emt 0:03:58]} 40. Rxd5 {[%emt 0:00:00]} f5 {[%emt 0:00:00]} 41. Rd4 {[%emt 0:01:29]} Kh7 {[%emt 0:00:40]} 42. Kd3 {[%emt 0:00:51]} fxe4+ {[%emt 0:01:20]} 43. Rxe4 {[%emt 0:02:13]} Rf8 {[%emt 0:00:10]} 44. Ke3 {[%emt 0:03:31]} Rc8 {[%emt 0:02:02]} 45. Rd4 {[%emt 0:04:36]} Rc6 {[%emt 0:01:02]} 46. a4 {[%emt 0:01:57]} Kxh6 {[%emt 0:03:53]} 47. b5 {[%emt 0:00:19]} axb5 {[%emt 0:00:52]} 48. axb5 {[%emt 0:00:01]} Rb6 {[%emt 0:01:10]} 49. Rd5 {[%emt 0:00:02]} Kg7 {[%emt 0:00:31]} 50. Kd4 {[%emt 0:00:39]} Kf6 $2 {[%emt 0:00:15]} (50... Kf7 51. Rg5 Ke7) 51. Kc4 {[%emt 0:00:26]} Ke7 {[%emt 0:01:09]} 52. Rg5 {[%emt 0:00:21]} Rb8 {[%emt 0:01:38]} 53. Rxg6 {[%emt 0:02:45]} Rc8+ {[%emt 0:04:15]} 54. Kb4 {[%emt 0:00:49]} d5 {[%emt 0:00:21]} 55. f5 {[%emt 0:03:11]} Rc2 $18 {[%emt 0:07:00]} 56. b3 {[%emt 0:01:27]} Kd7 {[%emt 0:05:25]} 57. Rg7+ {[%emt 0:02:06]} Kd6 {[%emt 0:04:49]} 58. b6 {[%emt 0:00:30]} Rc8 {[%emt 0:00:40]} 59. b7 {[%emt 0:00:55]} Rf8 {[%emt 0:00:48]} 60. Kb5 {[%emt 0:00:54]} 1-0

[Event "BLR-ch 1st Stage Women 2020"]
[Site "Minsk"]
[Date "2020.02.03"]
[Round "9.3"]
[White "Sukalina, Alina"]
[Black "Astapchyk, Darya"]
[Result "0-1"]
[ECO "D20"]
[WhiteElo "1622"]
[BlackElo "1380"]
[Annotator "NA RC"]
[PlyCount "148"]
[EventDate "2020.02.01"]
[EventType "swiss"]
[EventCountry "BLR"]
[SourceTitle "playchess.com"]
[Source "ChessBase"]
[SourceQuality "1"]
[TimeControl "40/5400+30:1800+30"]

1. d4 {[%emt 0:00:00]} d5 {[%emt 0:00:00]} 2. c4 {[%emt 0:00:00]} dxc4 {[%emt 0:00:00]} 3. Nc3 {[%emt 0:00:36]} Nf6 {[%emt 0:00:55]} 4. e4 {[%emt 0:01:02]} e5 {[%emt 0:03:59]} 5. d5 {[%emt 0:03:49]} c6 {[%emt 0:00:11]} 6. Bxc4 {[%emt 0:00:42]} b5 {[%emt 0:00:41]} 7. Bb3 {[%emt 0:34:00]} b4 {[%emt 0:00:09]} 8. Na4 {[%emt 0:00:35]} Nxe4 {[%emt 0:01:04]} 9. Qh5 {[%emt 0:17:20]} Qc7 {[%emt 0:22:35]} 10. dxc6 {[%emt 0:15:03]} Nf6 {[%emt 0:04:21]} 11. Qe2 {[%emt 0:03:26]} Ba6 {[%emt 0:05:56]} 12. Qe3 {[%emt 0:01:06]} Nxc6 {[%emt 0:04:14]} 13. Bd2 {[%emt 0:06:50]} Rd8 {[%emt 0:09:10]} 14. Rc1 {[%emt 0:01:25]} Rd3 {[%emt 0:05:05]} 15. Qe2 {[%emt 0:04:18]} Qb7 {[%emt 0:21:26]} 16. Bc4 {[%emt 0:01:31]} Bxc4 {[%emt 0:00:36]} 17. Rxc4 {[%emt 0:00:00]} Rd5 {[%emt 0:01:35]} 18. Nf3 {[%emt 0:01:30]} Be7 {[%emt 0:01:28]} 19. O-O {[%emt 0:00:57]} Qd7 {[%emt 0:02:04]} 20. Be3 {[%emt 0:01:03]} e4 {[%emt 0:02:26]} 21. Nd2 {[%emt 0:02:05]} Ne5 {[%emt 0:00:30]} 22. b3 {[%emt 0:00:56]} Nxc4 {[%emt 0:00:50]} 23. Nxc4 {[%emt 0:00:10]} O-O {[%emt 0:00:48]} 24. h3 {[%emt 0:00:30]} Rd8 {[%emt 0:00:31]} 25. Nab2 {[%emt 0:00:44]} Qb5 {[%emt 0:03:23]} 26. Qc2 {[%emt 0:01:40]} Bc5 {[%emt 0:00:32]} 27. Bxc5 {[%emt 0:00:58]} Qxc5 {[%emt 0:00:18]} 28. Qe2 {[%emt 0:00:31]} Qb5 {[%emt 0:01:36]} 29. Qc2 {[%emt 0:00:28]} Qd7 {[%emt 0:02:49]} 30. Qb1 {[%emt 0:00:35]} Rg5 {[%emt 0:00:48]} 31. Rd1 {[%emt 0:00:46]} Rd5 {[%emt 0:00:07]} 32. Rxd5 {[%emt 0:00:23]} Qxd5 {[%emt 0:00:04]} 33. Ne3 {[%emt 0:00:09]} Qd4 {[%emt 0:02:33]} 34. Nbc4 {[%emt 0:00:21]} Nd5 {[%emt 0:00:48]} 35. Nxd5 {[%emt 0:01:00]} Qxd5 {[%emt 0:00:19]} 36. Kh2 {[%emt 0:00:09]} h6 {[%emt 0:00:58]} 37. Qe1 {[%emt 0:00:22]} a5 {[%emt 0:00:45]} 38. Qe3 {[%emt 0:00:35]} Kh7 {[%emt 0:01:25]} 39. Qb6 {[%emt 0:00:42]} f5 {[%emt 0:01:02]} 40. Qc7 {[%emt 0:00:00]} Rd7 {[%emt 0:00:00]} 41. Qc8 {[%emt 0:04:46]} Qb7 {[%emt 0:06:36]} 42. Qe8 {[%emt 0:03:54]} Re7 {[%emt 0:00:51]} 43. Qf8 {[%emt 0:00:43]} Rf7 {[%emt 0:00:37]} 44. Qe8 {[%emt 0:00:26]} Qc7+ {[%emt 0:00:32]} 45. g3 {[%emt 0:01:11]} Qd7 {[%emt 0:04:59]} 46. Qe5 {[%emt 0:02:01]} Qc7 {[%emt 0:07:56]} 47. Qe8 {[%emt 0:01:13]} Qe7 {[%emt 0:01:07]} 48. Qb8 {[%emt 0:05:29]} f4 {[%emt 0:01:00]} 49. Qb6 {[%emt 0:06:43]} fxg3+ {[%emt 0:00:28]} 50. fxg3 {[%emt 0:00:24]} Qf6 {[%emt 0:02:16]} 51. Qxf6 {[%emt 0:00:59]} gxf6 {[%emt 0:01:27]} 52. Kg2 {[%emt 0:00:38]} f5 {[%emt 0:02:59]} 53. Kf2 {[%emt 0:00:34]} Kg7 {[%emt 0:00:48]} 54. Ke3 {[%emt 0:00:30]} Rd7 {[%emt 0:00:58]} 55. Nb2 {[%emt 0:01:35]} h5 {[%emt 0:00:52]} 56. g4 {[%emt 0:00:43]} hxg4 {[%emt 0:01:16]} 57. hxg4 {[%emt 0:00:01]} Kf6 {[%emt 0:00:26]} 58. gxf5 {[%emt 0:00:06]} Kxf5 {[%emt 0:00:05]} 59. Nc4 {[%emt 0:00:15]} Rd3+ {[%emt 0:01:21]} 60. Ke2 {[%emt 0:00:17]} Kf4 {[%emt 0:01:49]} 61. Nxa5 {[%emt 0:00:36]} Rh3 {[%emt 0:00:09]} 62. Nc6 {[%emt 0:00:35]} Rh2+ {[%emt 0:00:10]} 63. Ke1 {[%emt 0:00:51]} Rxa2 {[%emt 0:01:34]} 64. Nxb4 {[%emt 0:00:09]} Rb2 {[%emt 0:00:18]} 65. Nd5+ {[%emt 0:00:20]} Ke5 {[%emt 0:00:54]} 66. Ne3 {[%emt 0:00:48]} Rxb3 {[%emt 0:00:16]} 67. Kd2 {[%emt 0:01:14]} Kf4 {[%emt 0:00:52]} 68. Nc4 {[%emt 0:00:34]} Kf3 {[%emt 0:01:18]} 69. Ne5+ {[%emt 0:00:16]} Kf4 {[%emt 0:00:23]} 70. Nc4 {[%emt 0:00:15]} Rh3 {[%emt 0:00:15]} 71. Ke2 {[%emt 0:00:25]} Rh2+ {[%emt 0:00:10]} 72. Kf1 {[%emt 0:00:15]} Rc2 {[%emt 0:00:58]} 73. Nd6 {[%emt 0:00:43]} Kf3 {[%emt 0:00:23]} 74. Ke1 {[%emt 0:00:13]} e3 {[%emt 0:00:20]} 0-1